[Event "*** Titled Tuesday Blitz"]
[Site "Chess.com"]
[Date "2021.02.09"]
[Round "5"]
[White "Azde"]
[Black "annacramling"]
[Result "1-0"]
[WhiteElo "2358"]
[BlackElo "2092"]
[TimeControl "180+1"]
[EndTime "10:56:52 PST"]
[Termination "Azde won on time"]

1. d4 {[%clk 0:03:00.9]} 1... Nf6 {[%clk 0:02:59.5]} 2. c4 {[%clk 0:02:59.8]}
2... e6 {[%clk 0:02:59.4]} 3. Nf3 {[%clk 0:02:59.1]} 3... d5 {[%clk 0:02:58]} 4.
Nc3 {[%clk 0:02:59]} 4... Be7 {[%clk 0:02:43.6]} 5. Bf4 {[%clk 0:02:58.7]} 5...
O-O {[%clk 0:02:40.7]} 6. e3 {[%clk 0:02:59.1]} 6... c6 {[%clk 0:02:39.5]} 7.
Bd3 {[%clk 0:02:56.9]} 7... Nbd7 {[%clk 0:02:39]} 8. O-O {[%clk 0:02:55]} 8...
h6 {[%clk 0:02:38.8]} 9. Qe2 {[%clk 0:02:54.9]} 9... dxc4 {[%clk 0:02:38.1]} 10.
Bxc4 {[%clk 0:02:54.9]} 10... b5 {[%clk 0:02:38.5]} 11. Bd3 {[%clk 0:02:55.1]}
11... Bb7 {[%clk 0:02:38.5]} 12. e4 {[%clk 0:02:52.4]} 12... a6 {[%clk
0:02:36.1]} 13. e5 {[%clk 0:02:51.8]} 13... Nd5 {[%clk 0:02:36.1]} 14. Qe4
{[%clk 0:02:43.4]} 14... f5 {[%clk 0:02:22.1]} 15. exf6 {[%clk 0:02:42.5]} 15...
N7xf6 {[%clk 0:02:13.6]} 16. Qxe6+ {[%clk 0:02:42.2]} 16... Kh8 {[%clk
0:02:12.3]} 17. Bg3 {[%clk 0:02:23.4]} 17... Bc8 {[%clk 0:02:07.4]} 18. Qe2
{[%clk 0:02:20]} 18... Bg4 {[%clk 0:02:06.8]} 19. h3 {[%clk 0:02:18.9]} 19...
Bh5 {[%clk 0:02:00.2]} 20. Rfe1 {[%clk 0:02:14.8]} 20... Bb4 {[%clk 0:01:52.6]}
21. Rac1 {[%clk 0:02:08.2]} 21... Re8 {[%clk 0:01:17.6]} 22. Be5 {[%clk
0:02:03.3]} 22... c5 {[%clk 0:01:04.9]} 23. g4 {[%clk 0:01:54.8]} 23... Bf7
{[%clk 0:00:54.6]} 24. a3 {[%clk 0:01:46.5]} 24... Bxc3 {[%clk 0:00:50.2]} 25.
bxc3 {[%clk 0:01:47.4]} 25... Nf4 {[%clk 0:00:47.7]} 26. Qf1 {[%clk 0:01:42.1]}
26... Nxd3 {[%clk 0:00:46.1]} 27. Qxd3 {[%clk 0:01:43]} 27... c4 {[%clk
0:00:44]} 28. Qf5 {[%clk 0:01:41.5]} 28... Bd5 {[%clk 0:00:41.4]} 29. Bxf6
{[%clk 0:01:36.4]} 29... Rxe1+ {[%clk 0:00:26.8]} 30. Rxe1 {[%clk 0:01:34.9]}
30... gxf6 {[%clk 0:00:25.8]} 31. Nh4 {[%clk 0:01:33.5]} 31... Bf7 {[%clk
0:00:22.2]} 32. Qf4 {[%clk 0:01:30.6]} 32... Kh7 {[%clk 0:00:14]} 33. Nf5 {[%clk
0:01:30]} 33... Qf8 {[%clk 0:00:12.2]} 34. Re7 {[%clk 0:01:29.9]} 34... Re8
{[%clk 0:00:07.7]} 35. Rc7 {[%clk 0:00:58.2]} 35... Re1+ {[%clk 0:00:02.3]} 36.
Kh2 {[%clk 0:00:58.1]} 36... Re2 {[%clk 0:00:02]} 37. Nxh6 {[%clk 0:00:48.9]}
37... Qxh6 {[%clk 0:00:01.6]} 38. Rxf7+ {[%clk 0:00:47.7]} 38... Kg6 {[%clk
0:00:01.5]} 39. Rxf6+ {[%clk 0:00:47.2]} 1-0

[Event "*** Titled Tuesday Blitz"]
[Site "Chess.com"]
[Date "2021.02.09"]
[Round "5"]
[White "AryanTari"]
[Black "Legendinunknown"]
[Result "1-0"]
[WhiteElo "2899"]
[BlackElo "2607"]
[TimeControl "180+1"]
[EndTime "10:56:53 PST"]
[Termination "AryanTari won by resignation"]

1. e4 {[%clk 0:03:00.2]} 1... e5 {[%clk 0:02:57.5]} 2. Nc3 {[%clk 0:02:55.9]}
2... Nf6 {[%clk 0:02:55.9]} 3. f4 {[%clk 0:02:53.4]} 3... d5 {[%clk 0:02:55.2]}
4. fxe5 {[%clk 0:02:53.7]} 4... Nxe4 {[%clk 0:02:53.6]} 5. Qf3 {[%clk
0:02:53.8]} 5... Nxc3 {[%clk 0:02:49.6]} 6. dxc3 {[%clk 0:02:53.4]} 6... Nc6
{[%clk 0:02:47.1]} 7. Bb5 {[%clk 0:02:53.3]} 7... Be7 {[%clk 0:02:45.2]} 8. Bf4
{[%clk 0:02:46.5]} 8... O-O {[%clk 0:02:44.1]} 9. O-O-O {[%clk 0:02:46.2]} 9...
Be6 {[%clk 0:02:38.8]} 10. Ne2 {[%clk 0:02:46.2]} 10... Bg5 {[%clk 0:02:33.2]}
11. h4 {[%clk 0:02:43]} 11... Bxf4+ {[%clk 0:02:11.1]} 12. Qxf4 {[%clk
0:02:37.4]} 12... Ne7 {[%clk 0:02:05.5]} 13. h5 {[%clk 0:02:30.5]} 13... f5
{[%clk 0:01:40.1]} 14. Nd4 {[%clk 0:02:17.5]} 14... Qc8 {[%clk 0:01:36.7]} 15.
Qg5 {[%clk 0:02:11]} 15... Rf7 {[%clk 0:01:32.7]} 16. h6 {[%clk 0:02:08.8]}
16... c5 {[%clk 0:00:49.9]} 17. Be8 {[%clk 0:02:02.5]} 17... Qxe8 {[%clk
0:00:45.3]} 18. Nxe6 {[%clk 0:02:02.2]} 18... Ng6 {[%clk 0:00:45.6]} 19. Nxg7
{[%clk 0:01:48.3]} 19... Qxe5 {[%clk 0:00:41.9]} 20. Rhe1 {[%clk 0:01:48.1]}
20... Qf4+ {[%clk 0:00:40.2]} 21. Qxf4 {[%clk 0:01:48.4]} 21... Nxf4 {[%clk
0:00:41.1]} 22. g3 {[%clk 0:01:49]} 22... Ng6 {[%clk 0:00:32.3]} 23. Rxd5 {[%clk
0:01:48.8]} 23... f4 {[%clk 0:00:30.4]} 24. gxf4 {[%clk 0:01:48.6]} 24... Rxf4
{[%clk 0:00:30.7]} 25. Rxc5 {[%clk 0:01:45.6]} 25... Rd8 {[%clk 0:00:24.8]} 26.
Ne6 {[%clk 0:01:44.1]} 26... Re8 {[%clk 0:00:24.7]} 27. Nxf4 {[%clk 0:01:43.4]}
27... Rxe1+ {[%clk 0:00:24.3]} 28. Kd2 {[%clk 0:01:43.8]} 28... Rh1 {[%clk
0:00:18.2]} 29. Nxg6 {[%clk 0:01:36.7]} 29... hxg6 {[%clk 0:00:19.1]} 30. Rc7
{[%clk 0:01:36.7]} 30... Rxh6 {[%clk 0:00:18.7]} 31. Rxb7 {[%clk 0:01:37.1]}
31... a5 {[%clk 0:00:18.9]} 32. c4 {[%clk 0:01:32.1]} 32... Kf8 {[%clk
0:00:17.9]} 33. Ra7 {[%clk 0:01:29.9]} 33... Rh5 {[%clk 0:00:17.7]} 34. a3
{[%clk 0:01:29.8]} 34... Ke8 {[%clk 0:00:15.6]} 35. b4 {[%clk 0:01:29.4]} 35...
axb4 {[%clk 0:00:16.5]} 36. axb4 {[%clk 0:01:30.1]} 36... Rh2+ {[%clk 0:00:17]}
37. Kd3 {[%clk 0:01:30]} 37... Rh3+ {[%clk 0:00:17.5]} 38. Kd4 {[%clk 0:01:30]}
38... Rh2 {[%clk 0:00:18.1]} 39. c3 {[%clk 0:01:26.2]} 39... g5 {[%clk
0:00:16.8]} 40. b5 {[%clk 0:01:23.9]} 40... g4 {[%clk 0:00:16.9]} 41. Rg7 {[%clk
0:01:23.8]} 41... Rg2 {[%clk 0:00:15.9]} 42. b6 {[%clk 0:01:23.9]} 42... Rb2
{[%clk 0:00:15.2]} 43. c5 {[%clk 0:01:23.5]} 43... Kd8 {[%clk 0:00:13.4]} 44.
Rxg4 {[%clk 0:01:22.9]} 44... Kd7 {[%clk 0:00:12]} 45. Rg7+ {[%clk 0:01:20.7]}
45... Kc8 {[%clk 0:00:12.2]} 46. Kd5 {[%clk 0:01:19.7]} 46... Rh2 {[%clk
0:00:11.1]} 47. c6 {[%clk 0:01:16.6]} 47... Rh5+ {[%clk 0:00:09.8]} 48. Ke4
{[%clk 0:01:16.8]} 48... Rh4+ {[%clk 0:00:09.1]} 49. Kf3 {[%clk 0:01:16.5]}
49... Rh8 {[%clk 0:00:08.9]} 50. Ra7 {[%clk 0:01:16.5]} 50... Rf8+ {[%clk
0:00:08.1]} 51. Kg4 {[%clk 0:01:16]} 51... Rg8+ {[%clk 0:00:08.3]} 52. Kh5
{[%clk 0:01:16.3]} 52... Rh8+ {[%clk 0:00:08.4]} 53. Kg6 {[%clk 0:01:16.7]} 1-0

[Event "*** Titled Tuesday Blitz"]
[Site "Chess.com"]
[Date "2021.02.09"]
[Round "5"]
[White "Vamostodorecto"]
[Black "Sanyura"]
[Result "0-1"]
[WhiteElo "2412"]
[BlackElo "2642"]
[TimeControl "180+1"]
[EndTime "10:56:53 PST"]
[Termination "Sanyura won by checkmate"]

1. d4 {[%clk 0:03:00.9]} 1... Nf6 {[%clk 0:02:30.9]} 2. c4 {[%clk 0:02:36.2]}
2... g6 {[%clk 0:02:30.9]} 3. Nc3 {[%clk 0:02:36.2]} 3... Bg7 {[%clk 0:02:31.3]}
4. e4 {[%clk 0:02:35.9]} 4... d6 {[%clk 0:02:31.9]} 5. Be2 {[%clk 0:02:36.6]}
5... O-O {[%clk 0:02:32.3]} 6. Nf3 {[%clk 0:02:37.5]} 6... e5 {[%clk 0:02:30.8]}
7. O-O {[%clk 0:02:38]} 7... Nc6 {[%clk 0:02:31]} 8. d5 {[%clk 0:02:37.6]} 8...
Ne7 {[%clk 0:02:31.4]} 9. Ne1 {[%clk 0:02:38.3]} 9... Ne8 {[%clk 0:02:31.8]} 10.
Be3 {[%clk 0:02:39]} 10... f5 {[%clk 0:02:32.4]} 11. f3 {[%clk 0:02:39.7]} 11...
f4 {[%clk 0:02:33]} 12. Bf2 {[%clk 0:02:40.3]} 12... g5 {[%clk 0:02:33.7]} 13.
Rc1 {[%clk 0:02:40.6]} 13... Rf7 {[%clk 0:02:34.4]} 14. c5 {[%clk 0:02:41.2]}
14... Ng6 {[%clk 0:02:33.9]} 15. cxd6 {[%clk 0:02:41.2]} 15... cxd6 {[%clk
0:02:34.8]} 16. Nb5 {[%clk 0:02:40.4]} 16... a6 {[%clk 0:02:34.7]} 17. Na3
{[%clk 0:02:38.7]} 17... h5 {[%clk 0:02:31.2]} 18. Nc4 {[%clk 0:02:35.2]} 18...
g4 {[%clk 0:02:31.1]} 19. fxg4 {[%clk 0:02:32.5]} 19... hxg4 {[%clk 0:02:30.2]}
20. Bxg4 {[%clk 0:02:33.4]} 20... Qg5 {[%clk 0:02:26.3]} 21. Bxc8 {[%clk
0:02:22.5]} 21... Rxc8 {[%clk 0:02:27.2]} 22. Nf3 {[%clk 0:02:22.2]} 22... Qh5
{[%clk 0:02:15.7]} 23. Nb6 {[%clk 0:02:20.5]} 23... Rd8 {[%clk 0:02:02.1]} 24.
Rc3 {[%clk 0:02:03.3]} 24... Nf6 {[%clk 0:01:58.9]} 25. Qd3 {[%clk 0:02:00.9]}
25... Bf8 {[%clk 0:01:45.1]} 26. Rfc1 {[%clk 0:01:59.5]} 26... Rg7 {[%clk
0:01:41.6]} 27. Rc8 {[%clk 0:01:55]} 27... Rxc8 {[%clk 0:01:40.6]} 28. Rxc8
{[%clk 0:01:55.9]} 28... Ne7 {[%clk 0:01:30.1]} 29. Rb8 {[%clk 0:01:44.7]} 29...
Qg6 {[%clk 0:01:24.6]} 30. Nh4 {[%clk 0:01:43.3]} 30... Qxe4 {[%clk 0:01:17.1]}
31. Qxe4 {[%clk 0:01:41.6]} 31... Nxe4 {[%clk 0:01:18]} 32. Nd7 {[%clk
0:01:36.8]} 32... Rf7 {[%clk 0:01:13]} 33. Nxf8 {[%clk 0:00:57.5]} 33... Rxf8
{[%clk 0:01:13.9]} 34. Rxb7 {[%clk 0:00:57.7]} 34... Nxd5 {[%clk 0:01:06.6]} 35.
Ra7 {[%clk 0:00:47.1]} 35... Rc8 {[%clk 0:01:02.9]} 36. g3 {[%clk 0:00:35.9]}
36... Rc1+ {[%clk 0:00:50.1]} 37. Kg2 {[%clk 0:00:35]} 37... Rc2 {[%clk
0:00:50.4]} 38. Kf3 {[%clk 0:00:30.2]} 38... Ndf6 {[%clk 0:00:38]} 39. Ra8+
{[%clk 0:00:24.7]} 39... Kf7 {[%clk 0:00:34.7]} 40. Bg1 {[%clk 0:00:19.9]} 40...
Ng5# {[%clk 0:00:33.4]} 0-1

[Event "*** Titled Tuesday Blitz"]
[Site "Chess.com"]
[Date "2021.02.09"]
[Round "5"]
[White "Manukyan_Artak"]
[Black "Kaponov"]
[Result "0-1"]
[WhiteElo "2359"]
[BlackElo "2217"]
[TimeControl "180+1"]
[EndTime "10:56:53 PST"]
[Termination "Kaponov won by resignation"]

1. e4 {[%clk 0:03:00.9]} 1... c5 {[%clk 0:01:50.1]} 2. Nc3 {[%clk 0:02:58.9]}
2... e6 {[%clk 0:01:49.9]} 3. Nf3 {[%clk 0:02:55.9]} 3... a6 {[%clk 0:01:50]} 4.
a4 {[%clk 0:02:55.1]} 4... Ne7 {[%clk 0:01:50.2]} 5. d4 {[%clk 0:02:54.9]} 5...
cxd4 {[%clk 0:01:42.1]} 6. Nxd4 {[%clk 0:02:55.8]} 6... Nbc6 {[%clk 0:01:42.2]}
7. Bc4 {[%clk 0:02:53.6]} 7... Nxd4 {[%clk 0:01:40.2]} 8. Qxd4 {[%clk
0:02:52.6]} 8... Nc6 {[%clk 0:01:41.1]} 9. Qe3 {[%clk 0:02:48.2]} 9... Bb4
{[%clk 0:01:40.3]} 10. O-O {[%clk 0:02:46]} 10... O-O {[%clk 0:01:36.8]} 11. Kh1
{[%clk 0:02:44.1]} 11... Qa5 {[%clk 0:01:32.1]} 12. Bd2 {[%clk 0:02:39.9]} 12...
Qc5 {[%clk 0:01:29]} 13. Qxc5 {[%clk 0:02:33.9]} 13... Bxc5 {[%clk 0:01:28.9]}
14. f4 {[%clk 0:02:30.1]} 14... b6 {[%clk 0:01:24.8]} 15. e5 {[%clk 0:02:28.2]}
15... Bb7 {[%clk 0:01:20.8]} 16. Bd3 {[%clk 0:02:26.6]} 16... Nb4 {[%clk
0:01:18.4]} 17. Ne4 {[%clk 0:02:23.6]} 17... Nxd3 {[%clk 0:01:16.3]} 18. cxd3
{[%clk 0:02:22.5]} 18... Bd4 {[%clk 0:01:16.1]} 19. Bc3 {[%clk 0:02:20.6]} 19...
Bxc3 {[%clk 0:01:04.7]} 20. bxc3 {[%clk 0:02:18.2]} 20... Bxe4 {[%clk
0:00:58.2]} 21. dxe4 {[%clk 0:02:17.7]} 21... Rfc8 {[%clk 0:00:58.5]} 22. Rf3
{[%clk 0:02:14.3]} 22... Kf8 {[%clk 0:00:57.5]} 23. Rd3 {[%clk 0:02:11.6]} 23...
Ke7 {[%clk 0:00:57]} 24. Rad1 {[%clk 0:02:07.7]} 24... Ra7 {[%clk 0:00:56.8]}
25. g4 {[%clk 0:02:05]} 25... Rc4 {[%clk 0:00:56.7]} 26. Rd4 {[%clk 0:01:57.8]}
26... Rxc3 {[%clk 0:00:55.9]} 27. f5 {[%clk 0:01:57.1]} 27... b5 {[%clk
0:00:48.8]} 28. axb5 {[%clk 0:01:55.6]} 28... axb5 {[%clk 0:00:49.3]} 29. g5
{[%clk 0:01:55]} 29... f6 {[%clk 0:00:49]} 30. exf6+ {[%clk 0:01:52.7]} 30...
gxf6 {[%clk 0:00:49.4]} 31. gxf6+ {[%clk 0:01:47.5]} 31... Kxf6 {[%clk
0:00:49.8]} 32. Rxd7 {[%clk 0:01:45]} 32... Rxd7 {[%clk 0:00:49.5]} 33. Rxd7
{[%clk 0:01:45.8]} 33... exf5 {[%clk 0:00:46.7]} 34. exf5 {[%clk 0:01:45.7]}
34... h5 {[%clk 0:00:42.7]} 35. Rb7 {[%clk 0:01:44.2]} 35... Rc5 {[%clk
0:00:41.7]} 36. Kg2 {[%clk 0:01:38.9]} 36... Rxf5 {[%clk 0:00:41.6]} 37. Kg3
{[%clk 0:01:38.7]} 37... Kg5 {[%clk 0:00:36.5]} 38. h4+ {[%clk 0:01:30.4]} 38...
Kg6 {[%clk 0:00:28.6]} 39. Rb6+ {[%clk 0:01:28.8]} 39... Kf7 {[%clk 0:00:28.5]}
40. Rb7+ {[%clk 0:01:26.6]} 40... Ke6 {[%clk 0:00:27.2]} 41. Rg7 {[%clk
0:01:24.1]} 41... Kd5 {[%clk 0:00:18.9]} 42. Rb7 {[%clk 0:01:17]} 42... Kc4
{[%clk 0:00:16.4]} 43. Rc7+ {[%clk 0:01:15]} 43... Rc5 {[%clk 0:00:15.4]} 44.
Rg7 {[%clk 0:01:13]} 44... b4 {[%clk 0:00:15.2]} 45. Kf4 {[%clk 0:01:09.7]}
45... b3 {[%clk 0:00:14.5]} 46. Ke3 {[%clk 0:01:09.7]} 46... b2 {[%clk
0:00:12.1]} 47. Rg1 {[%clk 0:01:08.2]} 47... Kb3 {[%clk 0:00:12.3]} 48. Kd2
{[%clk 0:01:06.6]} 48... Ka2 {[%clk 0:00:12.3]} 0-1

[Event "*** Titled Tuesday Blitz"]
[Site "Chess.com"]
[Date "2021.02.09"]
[Round "5"]
[White "nrvisakh"]
[Black "wonderfultime"]
[Result "0-1"]
[WhiteElo "2752"]
[BlackElo "2931"]
[TimeControl "180+1"]
[EndTime "10:56:56 PST"]
[Termination "wonderfultime won by resignation"]

1. c4 {[%clk 0:03:00.9]} 1... c6 {[%clk 0:02:56.9]} 2. Nf3 {[%clk 0:02:56]} 2...
Nf6 {[%clk 0:02:56.7]} 3. g3 {[%clk 0:02:52.5]} 3... d5 {[%clk 0:02:56.7]} 4. b3
{[%clk 0:02:47.1]} 4... Bg4 {[%clk 0:02:55.9]} 5. Bb2 {[%clk 0:02:32]} 5... e6
{[%clk 0:02:55.7]} 6. Bg2 {[%clk 0:02:31.5]} 6... Nbd7 {[%clk 0:02:55.7]} 7. O-O
{[%clk 0:02:31.2]} 7... Bd6 {[%clk 0:02:55.9]} 8. d3 {[%clk 0:02:31.1]} 8... O-O
{[%clk 0:02:56.3]} 9. Nbd2 {[%clk 0:02:31.5]} 9... Qe7 {[%clk 0:02:56.6]} 10. a3
{[%clk 0:02:31.4]} 10... a5 {[%clk 0:02:56.8]} 11. Re1 {[%clk 0:02:25.4]} 11...
h6 {[%clk 0:02:55.3]} 12. Qc2 {[%clk 0:02:22.2]} 12... Rfd8 {[%clk 0:02:49.6]}
13. e4 {[%clk 0:01:37.8]} 13... dxe4 {[%clk 0:02:50.5]} 14. dxe4 {[%clk
0:01:37.7]} 14... e5 {[%clk 0:02:23.8]} 15. Nh4 {[%clk 0:01:36.5]} 15... g6
{[%clk 0:02:24]} 16. h3 {[%clk 0:01:35.5]} 16... Be6 {[%clk 0:02:22.5]} 17. Nf5
{[%clk 0:01:34.5]} 17... Qf8 {[%clk 0:01:53.1]} 18. Nf3 {[%clk 0:01:26.4]} 18...
Bc7 {[%clk 0:01:41.6]} 19. Bc1 {[%clk 0:01:10.3]} 19... Bxf5 {[%clk 0:01:22]}
20. exf5 {[%clk 0:01:09.2]} 20... g5 {[%clk 0:01:22.8]} 21. Bb2 {[%clk
0:00:58.4]} 21... Re8 {[%clk 0:01:23.1]} 22. Rad1 {[%clk 0:00:55.3]} 22... Rad8
{[%clk 0:01:22.9]} 23. Re2 {[%clk 0:00:25.4]} 23... Qc5 {[%clk 0:01:07.6]} 24.
Rde1 {[%clk 0:00:22.7]} 24... e4 {[%clk 0:00:55]} 25. Nd2 {[%clk 0:00:22.5]}
25... Bxg3 {[%clk 0:00:54]} 26. Nxe4 {[%clk 0:00:18.6]} 26... Nxe4 {[%clk
0:00:54.4]} 27. Rxe4 {[%clk 0:00:19.5]} 27... Rxe4 {[%clk 0:00:49.6]} 28. Rxe4
{[%clk 0:00:19.3]} 28... Be5 {[%clk 0:00:47.9]} 29. b4 {[%clk 0:00:14.5]} 29...
axb4 {[%clk 0:00:47.9]} 30. axb4 {[%clk 0:00:14]} 30... Qd6 {[%clk 0:00:45.5]}
31. c5 {[%clk 0:00:14]} 31... Qf6 {[%clk 0:00:39.2]} 32. Bxe5 {[%clk 0:00:10.5]}
32... Nxe5 {[%clk 0:00:40.1]} 33. Qe2 {[%clk 0:00:08.9]} 33... Nd7 {[%clk
0:00:34]} 34. Qd3 {[%clk 0:00:07.5]} 34... Nxc5 {[%clk 0:00:32.4]} 0-1

[Event "*** Titled Tuesday Blitz"]
[Site "Chess.com"]
[Date "2021.02.09"]
[Round "5"]
[White "esteban062000"]
[Black "Shahaliyev"]
[Result "1-0"]
[WhiteElo "2151"]
[BlackElo "2660"]
[TimeControl "180+1"]
[EndTime "10:56:57 PST"]
[Termination "esteban062000 won by resignation"]

1. Nf3 {[%clk 0:02:58.6]} 1... d5 {[%clk 0:02:59.5]} 2. c4 {[%clk 0:02:58.1]}
2... Nf6 {[%clk 0:03:00.4]} 3. b3 {[%clk 0:02:56.6]} 3... dxc4 {[%clk
0:03:00.6]} 4. bxc4 {[%clk 0:02:56.5]} 4... c5 {[%clk 0:03:01.5]} 5. g3 {[%clk
0:02:56.3]} 5... Nc6 {[%clk 0:03:02.4]} 6. Bg2 {[%clk 0:02:56.5]} 6... g6 {[%clk
0:03:03.1]} 7. Bb2 {[%clk 0:02:55.6]} 7... Bg7 {[%clk 0:03:04]} 8. O-O {[%clk
0:02:55.5]} 8... O-O {[%clk 0:03:04.4]} 9. Nc3 {[%clk 0:02:54.2]} 9... Re8
{[%clk 0:03:04.6]} 10. d3 {[%clk 0:02:50.9]} 10... Rb8 {[%clk 0:03:01.2]} 11.
Rb1 {[%clk 0:02:41.8]} 11... b6 {[%clk 0:03:00.2]} 12. Qa4 {[%clk 0:02:35.2]}
12... Bb7 {[%clk 0:03:00.3]} 13. a3 {[%clk 0:02:27.5]} 13... Nd7 {[%clk
0:03:00.3]} 14. Nd5 {[%clk 0:02:23.3]} 14... Bxb2 {[%clk 0:02:59.9]} 15. Rxb2
{[%clk 0:02:24.2]} 15... e6 {[%clk 0:03:00.2]} 16. Nc3 {[%clk 0:02:21.5]} 16...
Qe7 {[%clk 0:02:54.2]} 17. Qd1 {[%clk 0:02:19.9]} 17... Nde5 {[%clk 0:02:53.6]}
18. Qd2 {[%clk 0:02:15.4]} 18... Nxf3+ {[%clk 0:02:53.2]} 19. Bxf3 {[%clk
0:02:15.4]} 19... Nd4 {[%clk 0:02:53.4]} 20. Bxb7 {[%clk 0:02:13.2]} 20... Qxb7
{[%clk 0:02:54.3]} 21. Qh6 {[%clk 0:02:08]} 21... Qa6 {[%clk 0:02:52.5]} 22. Ne4
{[%clk 0:01:54.6]} 22... f5 {[%clk 0:02:44.1]} 23. Nf6+ {[%clk 0:01:46.1]} 23...
Kf7 {[%clk 0:02:44.5]} 24. Nxe8 {[%clk 0:01:45]} 24... Rxe8 {[%clk 0:02:45.4]}
25. Qxh7+ {[%clk 0:01:45.4]} 25... Kf6 {[%clk 0:02:46.1]} 26. h4 {[%clk
0:01:12.7]} 26... Qxa3 {[%clk 0:02:43.5]} 27. Rfb1 {[%clk 0:01:12.1]} 27... Qa4
{[%clk 0:02:16.9]} 28. h5 {[%clk 0:01:10.7]} 28... gxh5 {[%clk 0:02:16.8]} 29.
Qh6+ {[%clk 0:01:07.5]} 29... Ke7 {[%clk 0:02:16.4]} 30. Qxh5 {[%clk 0:01:05.9]}
30... Rf8 {[%clk 0:02:06.4]} 31. Qg5+ {[%clk 0:01:04.5]} 31... Kd6 {[%clk
0:02:03.2]} 32. Qf4+ {[%clk 0:01:02.1]} 32... e5 {[%clk 0:01:59.5]} 33. Qh6+
{[%clk 0:01:00.9]} 33... Ne6 {[%clk 0:02:00.2]} 34. Rxb6+ {[%clk 0:00:56.9]}
34... axb6 {[%clk 0:01:55.3]} 35. Rxb6+ {[%clk 0:00:57.8]} 35... Kc7 {[%clk
0:01:56]} 36. Qxe6 {[%clk 0:00:40]} 36... Rd8 {[%clk 0:01:43.4]} 37. Rb5 {[%clk
0:00:34.1]} 37... Qa1+ {[%clk 0:01:41.8]} 38. Kg2 {[%clk 0:00:33.4]} 38... Qa8+
{[%clk 0:01:41.8]} 39. f3 {[%clk 0:00:30.5]} 39... Qc6 {[%clk 0:01:40.6]} 40.
Qxe5+ {[%clk 0:00:30.4]} 40... Qd6 {[%clk 0:01:39.5]} 41. Rxc5+ {[%clk
0:00:30.3]} 41... Kb7 {[%clk 0:01:37.1]} 42. Rb5+ {[%clk 0:00:30]} 42... Kc7
{[%clk 0:01:36.6]} 43. Qxd6+ {[%clk 0:00:25]} 43... Rxd6 {[%clk 0:01:36.2]} 44.
Rxf5 {[%clk 0:00:24.5]} 44... Re6 {[%clk 0:01:35.2]} 45. Kf2 {[%clk 0:00:24.9]}
45... Kd6 {[%clk 0:01:35.8]} 46. g4 {[%clk 0:00:25.4]} 46... Ke7 {[%clk
0:01:36.4]} 47. g5 {[%clk 0:00:25.8]} 47... Ra6 {[%clk 0:01:36.9]} 48. f4 {[%clk
0:00:25.5]} 48... Ra1 {[%clk 0:01:37.4]} 49. Kf3 {[%clk 0:00:26]} 49... Ke6
{[%clk 0:01:37.8]} 50. Re5+ {[%clk 0:00:25.9]} 50... Kf7 {[%clk 0:01:38.7]} 51.
Ke4 {[%clk 0:00:26]} 51... Kg6 {[%clk 0:01:39.4]} 52. e3 {[%clk 0:00:26.1]}
52... Kh5 {[%clk 0:01:39.9]} 53. Re6 {[%clk 0:00:26.1]} 53... Re1 {[%clk
0:01:38.8]} 54. d4 {[%clk 0:00:26.3]} 54... Ra1 {[%clk 0:01:37.5]} 55. d5 {[%clk
0:00:26.7]} 55... Ra4 {[%clk 0:01:36.2]} 56. Kd4 {[%clk 0:00:26.9]} 56... Ra1
{[%clk 0:01:36.3]} 57. d6 {[%clk 0:00:27.4]} 57... Rd1+ {[%clk 0:01:37.2]} 58.
Ke5 {[%clk 0:00:27.7]} 58... Rc1 {[%clk 0:01:37.4]} 59. d7 {[%clk 0:00:26.8]}
59... Rd1 {[%clk 0:01:38]} 60. Rd6 {[%clk 0:00:27.2]} 60... Rc1 {[%clk
0:01:38.4]} 61. d8=Q {[%clk 0:00:26.7]} 61... Rxc4 {[%clk 0:01:39.1]} 62. Qh8+
{[%clk 0:00:26.6]} 62... Kg4 {[%clk 0:01:39.5]} 63. Qa8 {[%clk 0:00:21.7]} 63...
Rc2 {[%clk 0:01:38.6]} 64. Qa4 {[%clk 0:00:20]} 64... Re2 {[%clk 0:01:37.7]} 65.
f5+ {[%clk 0:00:20.3]} 65... Kg3 {[%clk 0:01:37.5]} 66. Qf4+ {[%clk 0:00:20.5]}
66... Kg2 {[%clk 0:01:37.8]} 67. Qg4+ {[%clk 0:00:20.1]} 67... Kf2 {[%clk
0:01:38.3]} 68. Qxe2+ {[%clk 0:00:20.7]} 68... Kxe2 {[%clk 0:01:39.2]} 69. g6
{[%clk 0:00:21.3]} 1-0